[Event "Titled Tuesday Blitz October 5 2021"]
[White "Bortnyk, Olexandr"]
[Black "Babazada, Khazar"]
[WhiteFideId "14120828"]
[BlackFideId "13413554"]
[WhiteElo "2992"]
[BlackElo "2829"]
[Result "1-0"]
[Round "11"]
[TimeControl "180+1"]
[Date "2021.10.05"]
[WhiteClock "0:00:23"]
[BlackClock "0:00:33"]

1. e4 {[%clk 0:03:00]}  c5 {[%clk 0:02:45]} 2. c3 {[%clk 0:03:00]}  Nc6 {[%clk 0:02:43]} 3. d4 {[%clk 0:02:58]}  cxd4 {[%clk 0:02:44]} 4. cxd4 {[%clk 0:02:59]}  d5 {[%clk 0:02:44]} 5. exd5 {[%clk 0:02:59]}  Qxd5 {[%clk 0:02:45]} 6. Be3 {[%clk 0:02:59]}  e5 {[%clk 0:02:34]} 7. Nc3 {[%clk 0:03:00]}  Bb4 {[%clk 0:02:32]} 8. Nf3 {[%clk 0:03:01]}  Nf6 {[%clk 0:02:25]} 9. dxe5 {[%clk 0:02:59]}  Qxd1+ {[%clk 0:02:25]} 10. Rxd1 {[%clk 0:02:52]}  Ng4 {[%clk 0:02:18]} 11. Bf4 {[%clk 0:02:23]}  Be6 {[%clk 0:01:58]} 12. a3 {[%clk 0:02:06]}  Bxc3+ {[%clk 0:01:39]} 13. bxc3 {[%clk 0:02:07]}  h5 {[%clk 0:01:40]} 14. h3 {[%clk 0:01:59]}  Nh6 {[%clk 0:01:40]} 15. Bb5 {[%clk 0:02:00]}  Nf5 {[%clk 0:01:37]} 16. O-O {[%clk 0:01:28]}  O-O {[%clk 0:01:22]} 17. Ng5 {[%clk 0:00:40]}  Nfe7 {[%clk 0:01:12]} 18. Nxe6 {[%clk 0:00:38]}  fxe6 {[%clk 0:01:13]} 19. Bg3 {[%clk 0:00:36]}  Rfd8 {[%clk 0:01:08]} 20. Rd6 {[%clk 0:00:32]}  Kf7 {[%clk 0:01:01]} 21. Rfd1 {[%clk 0:00:29]}  Nf5 {[%clk 0:00:58]} 22. Rd7+ {[%clk 0:00:25]}  Ke8 {[%clk 0:00:52]} 23. Bxc6 {[%clk 0:00:21]}  bxc6 {[%clk 0:00:50]} 24. Rxd8+ {[%clk 0:00:22]}  Rxd8 {[%clk 0:00:50]} 25. Rxd8+ {[%clk 0:00:23]}  Kxd8 {[%clk 0:00:51]} 26. Bf4 {[%clk 0:00:24]}  Kd7 {[%clk 0:00:45]} 27. Bg5 {[%clk 0:00:24]}  g6 {[%clk 0:00:43]} 28. g4 {[%clk 0:00:24]}  Ng7 {[%clk 0:00:41]} 29. c4 {[%clk 0:00:23]}  Ne8 {[%clk 0:00:39]} 30. Kg2 {[%clk 0:00:23]}  Nc7 {[%clk 0:00:35]} 31. Kg3 {[%clk 0:00:23]}  hxg4 {[%clk 0:00:34]} 32. Kxg4 {[%clk 0:00:23]}  Ke8 {[%clk 0:00:33]} 33. Be3 {[%clk 0:00:23]} 1-0


[Site "https://www.chess.com"]

[Event "Titled Tuesday Blitz October 5 2021"]
[White "Chernomordik, Pavel"]
[Black "Gorin, Leonid"]
[WhiteFideId "2804530"]
[BlackFideId "4131991"]
[WhiteElo "2281"]
[BlackElo "2363"]
[Result "1-0"]
[Round "11"]
[TimeControl "180+1"]
[Date "2021.10.05"]
[WhiteClock "0:00:17"]
[BlackClock "0:00:11"]

1. e4 {[%clk 0:03:00]}  e5 {[%clk 0:02:59]} 2. Nf3 {[%clk 0:03:00]}  Nc6 {[%clk 0:02:59]} 3. Bb5 {[%clk 0:03:00]}  a6 {[%clk 0:02:58]} 4. Ba4 {[%clk 0:03:00]}  Nf6 {[%clk 0:02:58]} 5. Qe2 {[%clk 0:03:00]}  d6 {[%clk 0:02:57]} 6. c3 {[%clk 0:02:59]}  Be7 {[%clk 0:02:56]} 7. d4 {[%clk 0:02:57]}  Bd7 {[%clk 0:02:56]} 8. O-O {[%clk 0:02:52]}  O-O {[%clk 0:02:53]} 9. d5 {[%clk 0:02:42]}  Nb8 {[%clk 0:02:51]} 10. Bc2 {[%clk 0:02:39]}  Bg4 {[%clk 0:02:43]} 11. h3 {[%clk 0:02:38]}  Bxf3 {[%clk 0:02:43]} 12. Qxf3 {[%clk 0:02:38]}  Nbd7 {[%clk 0:02:43]} 13. Be3 {[%clk 0:02:33]}  h6 {[%clk 0:02:43]} 14. Nd2 {[%clk 0:02:30]}  Nh7 {[%clk 0:02:43]} 15. Nc4 {[%clk 0:02:21]}  Bg5 {[%clk 0:02:42]} 16. b4 {[%clk 0:02:16]}  b6 {[%clk 0:02:38]} 17. a4 {[%clk 0:02:14]}  Bxe3 {[%clk 0:02:33]} 18. Qxe3 {[%clk 0:02:08]}  Qg5 {[%clk 0:02:26]} 19. Bd3 {[%clk 0:01:54]}  Qg6 {[%clk 0:02:25]} 20. a5 {[%clk 0:01:45]}  b5 {[%clk 0:02:22]} 21. Nd2 {[%clk 0:01:45]}  Nhf6 {[%clk 0:02:21]} 22. c4 {[%clk 0:01:44]}  bxc4 {[%clk 0:02:19]} 23. Bxc4 {[%clk 0:01:44]}  Nh5 {[%clk 0:02:18]} 24. Rfb1 {[%clk 0:01:39]}  Nf4 {[%clk 0:02:13]} 25. Bf1 {[%clk 0:01:39]}  f5 {[%clk 0:02:13]} 26. Rc1 {[%clk 0:01:32]}  fxe4 {[%clk 0:02:09]} 27. Rxc7 {[%clk 0:01:26]}  Nf6 {[%clk 0:01:56]} 28. Rc6 {[%clk 0:01:25]}  N6xd5 {[%clk 0:01:45]} 29. Qg3 {[%clk 0:01:17]}  Qf5 {[%clk 0:01:27]} 30. Rxd6 {[%clk 0:01:10]}  Nh5 {[%clk 0:01:11]} 31. Qh4 {[%clk 0:01:03]}  Nxb4 {[%clk 0:00:52]} 32. Nxe4 {[%clk 0:00:58]}  Nf4 {[%clk 0:00:47]} 33. Ng3 {[%clk 0:00:55]}  Qf7 {[%clk 0:00:43]} 34. Rc1 {[%clk 0:00:46]}  Nfd3 {[%clk 0:00:37]} 35. Bxd3 {[%clk 0:00:40]}  Qxf2+ {[%clk 0:00:31]} 36. Kh2 {[%clk 0:00:39]}  Nxd3 {[%clk 0:00:30]} 37. Rxd3 {[%clk 0:00:38]}  Rab8 {[%clk 0:00:26]} 38. Qe4 {[%clk 0:00:31]}  Rb2 {[%clk 0:00:23]} 39. Rf1 {[%clk 0:00:22]}  Qc5 {[%clk 0:00:19]} 40. Rxf8+ {[%clk 0:00:21]}  Qxf8 {[%clk 0:00:19]} 41. Qxe5 {[%clk 0:00:20]}  Qf2 {[%clk 0:00:19]} 42. Qe4 {[%clk 0:00:19]}  Rb8 {[%clk 0:00:17]} 43. Rd7 {[%clk 0:00:18]}  Rf8 {[%clk 0:00:15]} 44. Nh5 {[%clk 0:00:18]}  Rf7 {[%clk 0:00:11]} 45. Qe8+ {[%clk 0:00:17]} 1-0


[Site "https://www.chess.com"]

[Event "Titled Tuesday Blitz October 5 2021"]
[White "Coto Mederos, Michel"]
[Black "Bristy, Mukherjee"]
[WhiteFideId "3508528"]
[BlackFideId "25077325"]
[WhiteElo "2427"]
[BlackElo "1661"]
[Result "1-0"]
[Round "11"]
[TimeControl "180+1"]
[Date "2021.10.05"]
[WhiteClock "0:00:28"]
[BlackClock "0:00:05"]

1. c4 {[%clk 0:03:00]}  Nf6 {[%clk 0:01:05]} 2. Nc3 {[%clk 0:02:59]}  e5 {[%clk 0:01:05]} 3. Nf3 {[%clk 0:02:58]}  d6 {[%clk 0:01:02]} 4. e4 {[%clk 0:02:56]}  Be7 {[%clk 0:01:02]} 5. d4 {[%clk 0:02:52]}  O-O {[%clk 0:00:59]} 6. Be2 {[%clk 0:02:50]}  exd4 {[%clk 0:00:57]} 7. Nxd4 {[%clk 0:02:50]}  Nc6 {[%clk 0:00:57]} 8. Nxc6 {[%clk 0:02:42]}  bxc6 {[%clk 0:00:58]} 9. O-O {[%clk 0:02:42]}  Be6 {[%clk 0:00:58]} 10. Be3 {[%clk 0:02:37]}  Qc8 {[%clk 0:00:57]} 11. f3 {[%clk 0:02:36]}  Qa6 {[%clk 0:00:56]} 12. b3 {[%clk 0:02:27]}  Qa5 {[%clk 0:00:56]} 13. Qc2 {[%clk 0:02:26]}  Rfb8 {[%clk 0:00:54]} 14. h3 {[%clk 0:02:18]}  d5 {[%clk 0:00:48]} 15. cxd5 {[%clk 0:02:03]}  cxd5 {[%clk 0:00:49]} 16. exd5 {[%clk 0:02:03]}  Nxd5 {[%clk 0:00:48]} 17. Nxd5 {[%clk 0:02:03]}  Qxd5 {[%clk 0:00:48]} 18. Bd3 {[%clk 0:02:03]}  h6 {[%clk 0:00:43]} 19. Be4 {[%clk 0:02:03]}  Qe5 {[%clk 0:00:38]} 20. f4 {[%clk 0:01:57]}  Qh5 {[%clk 0:00:25]} 21. Bf3 {[%clk 0:01:48]}  Bf5 {[%clk 0:00:17]} 22. Qxc7 {[%clk 0:01:41]}  Qg6 {[%clk 0:00:16]} 23. Qxe7 {[%clk 0:01:30]}  Re8 {[%clk 0:00:16]} 24. Qc5 {[%clk 0:01:25]}  Rac8 {[%clk 0:00:16]} 25. Qxa7 {[%clk 0:01:25]}  Rc2 {[%clk 0:00:16]} 26. Rf2 {[%clk 0:01:23]}  Rxf2 {[%clk 0:00:15]} 27. Bxf2 {[%clk 0:01:22]}  Bxh3 {[%clk 0:00:16]} 28. Re1 {[%clk 0:01:20]}  Rc8 {[%clk 0:00:09]} 29. Kh2 {[%clk 0:01:00]}  Be6 {[%clk 0:00:08]} 30. Qe3 {[%clk 0:00:55]}  Rc2 {[%clk 0:00:08]} 31. Re2 {[%clk 0:00:32]}  Kf8 {[%clk 0:00:02]} 32. Rxc2 {[%clk 0:00:30]}  Qxc2 {[%clk 0:00:03]} 33. Qc5+ {[%clk 0:00:30]}  Qxc5 {[%clk 0:00:04]} 34. Bxc5+ {[%clk 0:00:31]}  Ke8 {[%clk 0:00:05]} 35. Bd1 {[%clk 0:00:29]}  Kd7 {[%clk 0:00:05]} 36. Bd4 {[%clk 0:00:29]}  Kc6 {[%clk 0:00:06]} 37. Bxg7 {[%clk 0:00:29]}  h5 {[%clk 0:00:05]} 38. Bxh5 {[%clk 0:00:28]}  Kb5 {[%clk 0:00:06]} 39. Bf8 {[%clk 0:00:27]}  Bd5 {[%clk 0:00:07]} 40. Be2+ {[%clk 0:00:27]}  Kb6 {[%clk 0:00:07]} 41. g4 {[%clk 0:00:27]}  Be6 {[%clk 0:00:06]} 42. Kg3 {[%clk 0:00:27]}  Kc6 {[%clk 0:00:05]} 43. Bc4 {[%clk 0:00:27]}  Bxc4 {[%clk 0:00:03]} 44. bxc4 {[%clk 0:00:27]}  Kb6 {[%clk 0:00:02]} 45. g5 {[%clk 0:00:28]}  Ka5 {[%clk 0:00:03]} 46. f5 {[%clk 0:00:28]}  Ka4 {[%clk 0:00:04]} 47. g6 {[%clk 0:00:29]}  Ka5 {[%clk 0:00:05]} 48. gxf7 {[%clk 0:00:28]}  Ka4 {[%clk 0:00:05]} 49. Be7 {[%clk 0:00:28]}  Ka5 {[%clk 0:00:05]} 50. f8=Q {[%clk 0:00:29]}  Kb6 {[%clk 0:00:06]} 51. Qc8 {[%clk 0:00:28]}  Ka7 {[%clk 0:00:05]} 52. Bc5# {[%clk 0:00:28]} 1-0


[Site "https://www.chess.com"]

[Event "Titled Tuesday Blitz October 5 2021"]
[White "Csonka, Balazs"]
[Black "Siva Mahadevan"]
[WhiteFideId "742910"]
[BlackFideId "25043153"]
[WhiteElo "2719"]
[BlackElo "2877"]
[Result "1-0"]
[Round "11"]
[TimeControl "180+1"]
[Date "2021.10.05"]
[WhiteClock "0:01:47"]
[BlackClock "0:02:46"]

1. d4 {[%clk 0:03:00]}  Nf6 {[%clk 0:03:00]} 2. c4 {[%clk 0:02:59]}  g6 {[%clk 0:03:00]} 3. Nc3 {[%clk 0:02:59]}  Bg7 {[%clk 0:03:00]} 4. e4 {[%clk 0:02:58]}  O-O {[%clk 0:03:01]} 5. Nf3 {[%clk 0:02:57]}  d6 {[%clk 0:03:02]} 6. Be2 {[%clk 0:02:58]}  e5 {[%clk 0:03:02]} 7. O-O {[%clk 0:02:58]}  Nc6 {[%clk 0:03:01]} 8. dxe5 {[%clk 0:02:58]}  Ne7 {[%clk 0:03:02]} 9. exf6 {[%clk 0:02:57]}  Bxf6 {[%clk 0:02:53]} 10. Bd2 {[%clk 0:02:49]}  Bg7 {[%clk 0:02:52]} 11. Qc2 {[%clk 0:02:49]}  f5 {[%clk 0:02:52]} 12. Rae1 {[%clk 0:02:47]}  fxe4 {[%clk 0:02:52]} 13. Nxe4 {[%clk 0:02:48]}  Nf5 {[%clk 0:02:53]} 14. Bc3 {[%clk 0:02:47]}  Bd7 {[%clk 0:02:51]} 15. Bxg7 {[%clk 0:02:45]}  Kxg7 {[%clk 0:02:52]} 16. Qc3+ {[%clk 0:02:45]}  Kg8 {[%clk 0:02:52]} 17. Nd4 {[%clk 0:02:42]}  Nh4 {[%clk 0:02:51]} 18. Nf3 {[%clk 0:02:38]}  Nf5 {[%clk 0:02:51]} 19. Ng3 {[%clk 0:02:38]}  Ng7 {[%clk 0:02:49]} 20. Nd4 {[%clk 0:02:35]}  c5 {[%clk 0:02:48]} 21. Nc2 {[%clk 0:02:24]}  Bc6 {[%clk 0:02:48]} 22. Ne3 {[%clk 0:02:21]}  h5 {[%clk 0:02:48]} 23. Nd5 {[%clk 0:02:15]}  Ne6 {[%clk 0:02:48]} 24. Bd3 {[%clk 0:02:09]}  Nd4 {[%clk 0:02:48]} 25. Bxg6 {[%clk 0:02:04]}  h4 {[%clk 0:02:48]} 26. Ne7+ {[%clk 0:01:48]}  Kg7 {[%clk 0:02:46]} 27. Ngf5+ {[%clk 0:01:47]} 1-0


[Site "https://www.chess.com"]

[Event "Titled Tuesday Blitz October 5 2021"]
[White "Dang, Hoang Son"]
[Black "Maksimenko, Viktor"]
[WhiteFideId "12402435"]
[BlackFideId "13710478"]
[WhiteElo "2248"]
[BlackElo "2269"]
[Result "1-0"]
[Round "11"]
[TimeControl "180+1"]
[Date "2021.10.05"]
[WhiteClock "0:00:36"]
[BlackClock "0:00:02"]

1. d4 {[%clk 0:03:00]}  Nf6 {[%clk 0:03:00]} 2. c4 {[%clk 0:03:00]}  e6 {[%clk 0:03:00]} 3. Nf3 {[%clk 0:02:59]}  d5 {[%clk 0:03:01]} 4. g3 {[%clk 0:02:59]}  Be7 {[%clk 0:03:00]} 5. Bg2 {[%clk 0:02:59]}  O-O {[%clk 0:03:01]} 6. O-O {[%clk 0:03:00]}  dxc4 {[%clk 0:03:02]} 7. Qc2 {[%clk 0:03:01]}  a6 {[%clk 0:03:01]} 8. Qxc4 {[%clk 0:03:01]}  b5 {[%clk 0:03:01]} 9. Qc2 {[%clk 0:03:01]}  Bb7 {[%clk 0:03:02]} 10. Bf4 {[%clk 0:02:57]}  Nd5 {[%clk 0:02:57]} 11. Nbd2 {[%clk 0:02:55]}  Nd7 {[%clk 0:02:54]} 12. Rac1 {[%clk 0:02:46]}  Nxf4 {[%clk 0:02:51]} 13. gxf4 {[%clk 0:02:45]}  c5 {[%clk 0:02:51]} 14. Ng5 {[%clk 0:02:43]}  Bxg5 {[%clk 0:02:47]} 15. Bxb7 {[%clk 0:02:42]}  Ra7 {[%clk 0:02:46]} 16. Bg2 {[%clk 0:02:33]}  Bxf4 {[%clk 0:02:44]} 17. dxc5 {[%clk 0:02:33]}  Rc7 {[%clk 0:02:40]} 18. b4 {[%clk 0:02:32]}  Nxc5 {[%clk 0:02:38]} 19. bxc5 {[%clk 0:02:28]}  Qxd2 {[%clk 0:02:38]} 20. e3 {[%clk 0:02:19]}  Qxc2 {[%clk 0:02:29]} 21. Rxc2 {[%clk 0:02:20]}  Be5 {[%clk 0:02:29]} 22. f4 {[%clk 0:02:19]}  Bf6 {[%clk 0:02:27]} 23. Rd1 {[%clk 0:02:19]}  Rfc8 {[%clk 0:02:26]} 24. c6 {[%clk 0:02:13]}  Kf8 {[%clk 0:02:26]} 25. Rd3 {[%clk 0:02:02]}  Ke8 {[%clk 0:02:22]} 26. a4 {[%clk 0:02:02]}  b4 {[%clk 0:02:17]} 27. Rc4 {[%clk 0:01:57]}  Rb8 {[%clk 0:02:14]} 28. Rb3 {[%clk 0:01:54]}  a5 {[%clk 0:02:14]} 29. Rc5 {[%clk 0:01:54]}  Ra7 {[%clk 0:02:07]} 30. Kf2 {[%clk 0:01:43]}  Bd8 {[%clk 0:02:02]} 31. Ke2 {[%clk 0:01:33]}  Bc7 {[%clk 0:01:57]} 32. h4 {[%clk 0:01:32]}  Rd8 {[%clk 0:01:57]} 33. h5 {[%clk 0:01:30]}  Raa8 {[%clk 0:01:49]} 34. Be4 {[%clk 0:01:26]}  g6 {[%clk 0:01:46]} 35. h6 {[%clk 0:01:25]}  Ke7 {[%clk 0:01:42]} 36. Rb5 {[%clk 0:01:23]}  Rab8 {[%clk 0:01:40]} 37. Rb7 {[%clk 0:01:19]}  Rxb7 {[%clk 0:01:37]} 38. cxb7 {[%clk 0:01:20]}  f5 {[%clk 0:01:35]} 39. Bf3 {[%clk 0:01:16]}  e5 {[%clk 0:01:30]} 40. fxe5 {[%clk 0:01:10]}  Bxe5 {[%clk 0:01:31]} 41. Rb1 {[%clk 0:01:08]}  Bc3 {[%clk 0:01:25]} 42. Bc6 {[%clk 0:01:03]}  Be5 {[%clk 0:01:13]} 43. Rc1 {[%clk 0:01:03]}  b3 {[%clk 0:01:06]} 44. Rc5 {[%clk 0:01:02]}  Kf6 {[%clk 0:00:39]} 45. Rxa5 {[%clk 0:00:59]}  b2 {[%clk 0:00:36]} 46. Rb5 {[%clk 0:00:58]}  g5 {[%clk 0:00:29]} 47. a5 {[%clk 0:00:58]}  g4 {[%clk 0:00:29]} 48. a6 {[%clk 0:00:57]}  Bb8 {[%clk 0:00:30]} 49. Rxb2 {[%clk 0:00:56]}  Kg5 {[%clk 0:00:29]} 50. Rb5 {[%clk 0:00:56]}  Rd6 {[%clk 0:00:21]} 51. Rc5 {[%clk 0:00:44]}  Ba7 {[%clk 0:00:18]} 52. Bb5 {[%clk 0:00:44]}  Rxh6 {[%clk 0:00:14]} 53. Bd3 {[%clk 0:00:40]}  Rf6 {[%clk 0:00:14]} 54. Rc8 {[%clk 0:00:37]}  Rb6 {[%clk 0:00:12]} 55. Ra8 {[%clk 0:00:36]}  Rb2+ {[%clk 0:00:10]} 56. Ke1 {[%clk 0:00:36]}  Bxe3 {[%clk 0:00:08]} 57. b8=Q {[%clk 0:00:37]}  Rxb8 {[%clk 0:00:06]} 58. Rxb8 {[%clk 0:00:38]}  f4 {[%clk 0:00:06]} 59. Rg8+ {[%clk 0:00:37]}  Kh4 {[%clk 0:00:06]} 60. Bxh7 {[%clk 0:00:36]}  f3 {[%clk 0:00:05]} 61. Be4 {[%clk 0:00:36]}  Kg3 {[%clk 0:00:05]} 62. Bf5 {[%clk 0:00:36]}  f2+ {[%clk 0:00:02]} 63. Kf1 {[%clk 0:00:36]} 1-0


[Site "https://www.chess.com"]

[Event "Titled Tuesday Blitz October 5 2021"]
[White "Deuer, Marius"]
[Black "Rodchenkov, Vitaly"]
[WhiteFideId "16236432"]
[BlackFideId "4152964"]
[WhiteElo "2091"]
[BlackElo "2337"]
[Result "0-1"]
[Round "11"]
[TimeControl "180+1"]
[Date "2021.10.05"]
[WhiteClock "0:00:03"]
[BlackClock "0:01:52"]

1. b3 {[%clk 0:02:47]}  e5 {[%clk 0:02:57]} 2. Bb2 {[%clk 0:02:46]}  Nc6 {[%clk 0:02:58]} 3. e3 {[%clk 0:02:46]}  Nf6 {[%clk 0:02:57]} 4. c4 {[%clk 0:02:43]}  d5 {[%clk 0:02:55]} 5. cxd5 {[%clk 0:02:42]}  Nxd5 {[%clk 0:02:55]} 6. Bb5 {[%clk 0:02:41]}  Bd6 {[%clk 0:02:55]} 7. Nf3 {[%clk 0:02:39]}  Qe7 {[%clk 0:02:49]} 8. Qc2 {[%clk 0:02:31]}  Bd7 {[%clk 0:02:45]} 9. a3 {[%clk 0:02:17]}  O-O {[%clk 0:02:42]} 10. O-O {[%clk 0:02:13]}  Rad8 {[%clk 0:02:39]} 11. Bc4 {[%clk 0:02:10]}  Nb6 {[%clk 0:02:37]} 12. Nc3 {[%clk 0:02:06]}  Nxc4 {[%clk 0:02:36]} 13. bxc4 {[%clk 0:02:07]}  Bc8 {[%clk 0:02:34]} 14. d4 {[%clk 0:01:37]}  exd4 {[%clk 0:02:33]} 15. exd4 {[%clk 0:01:38]}  Rfe8 {[%clk 0:02:29]} 16. Rfe1 {[%clk 0:01:24]}  Qf6 {[%clk 0:02:18]} 17. Nd5 {[%clk 0:01:23]}  Qh6 {[%clk 0:02:18]} 18. Bc1 {[%clk 0:01:17]}  Rxe1+ {[%clk 0:02:05]} 19. Nxe1 {[%clk 0:01:16]}  Qxh2+ {[%clk 0:02:04]} 20. Kf1 {[%clk 0:01:15]}  Re8 {[%clk 0:02:00]} 21. Nf3 {[%clk 0:00:38]}  Qh1+ {[%clk 0:01:58]} 22. Ng1 {[%clk 0:00:38]}  Bh2 {[%clk 0:01:58]} 23. Be3 {[%clk 0:00:03]}  Nxd4 {[%clk 0:01:52]} 0-1


[Site "https://www.chess.com"]

[Event "Titled Tuesday Blitz October 5 2021"]
[White "Erdogmus, Yagiz Kaan"]
[Black "Gabrielian, Artur"]
[WhiteFideId "44599790"]
[BlackFideId "4131002"]
[WhiteElo "1783"]
[BlackElo "2489"]
[Result "1-0"]
[Round "11"]
[TimeControl "180+1"]
[Date "2021.10.05"]
[WhiteClock "0:00:12"]
[BlackClock "0:00:21"]

1. c4 {[%clk 0:02:52]}  Nf6 {[%clk 0:02:59]} 2. e3 {[%clk 0:02:51]}  g6 {[%clk 0:02:59]} 3. b3 {[%clk 0:02:49]}  Bg7 {[%clk 0:03:00]} 4. Bb2 {[%clk 0:02:49]}  O-O {[%clk 0:03:01]} 5. Nf3 {[%clk 0:02:49]}  d6 {[%clk 0:03:01]} 6. d4 {[%clk 0:02:46]}  Nbd7 {[%clk 0:03:01]} 7. Nbd2 {[%clk 0:02:45]}  e5 {[%clk 0:03:01]} 8. dxe5 {[%clk 0:02:45]}  Ng4 {[%clk 0:03:01]} 9. Be2 {[%clk 0:02:43]}  dxe5 {[%clk 0:03:01]} 10. h3 {[%clk 0:02:39]}  Nh6 {[%clk 0:03:01]} 11. O-O {[%clk 0:02:37]}  f5 {[%clk 0:02:59]} 12. e4 {[%clk 0:02:33]}  Nf7 {[%clk 0:02:57]} 13. b4 {[%clk 0:02:30]}  a5 {[%clk 0:02:56]} 14. a3 {[%clk 0:02:30]}  Qe7 {[%clk 0:02:56]} 15. c5 {[%clk 0:02:30]}  Nf6 {[%clk 0:02:53]} 16. Bc4 {[%clk 0:02:26]}  Be6 {[%clk 0:02:51]} 17. Nxe5 {[%clk 0:02:09]}  Nxe5 {[%clk 0:02:50]} 18. Bxe5 {[%clk 0:02:07]}  Bxc4 {[%clk 0:02:50]} 19. Nxc4 {[%clk 0:02:08]}  Nxe4 {[%clk 0:02:50]} 20. Bxg7 {[%clk 0:02:06]}  Kxg7 {[%clk 0:02:47]} 21. Qd4+ {[%clk 0:02:00]}  Rf6 {[%clk 0:02:21]} 22. f3 {[%clk 0:01:47]}  Ng3 {[%clk 0:02:10]} 23. Rfe1 {[%clk 0:01:37]}  Ne2+ {[%clk 0:01:43]} 24. Kf2 {[%clk 0:01:37]}  Nxd4 {[%clk 0:01:43]} 25. Rxe7+ {[%clk 0:01:36]}  Rf7 {[%clk 0:01:44]} 26. Rxf7+ {[%clk 0:01:37]}  Kxf7 {[%clk 0:01:44]} 27. Rd1 {[%clk 0:01:30]}  Nc6 {[%clk 0:01:40]} 28. b5 {[%clk 0:01:18]}  Ne7 {[%clk 0:01:40]} 29. Rd7 {[%clk 0:01:16]}  Rc8 {[%clk 0:01:40]} 30. Nxa5 {[%clk 0:01:16]}  Ke6 {[%clk 0:01:39]} 31. Rd2 {[%clk 0:01:16]}  b6 {[%clk 0:01:37]} 32. Re2+ {[%clk 0:01:07]}  Kf7 {[%clk 0:01:35]} 33. Nc4 {[%clk 0:01:05]}  bxc5 {[%clk 0:01:22]} 34. Ne5+ {[%clk 0:01:05]}  Kf8 {[%clk 0:01:21]} 35. Nd7+ {[%clk 0:01:05]}  Ke8 {[%clk 0:01:21]} 36. Nxc5 {[%clk 0:01:05]}  Kf7 {[%clk 0:01:14]} 37. a4 {[%clk 0:01:01]}  Nd5 {[%clk 0:01:12]} 38. Rd2 {[%clk 0:01:00]}  Nc3 {[%clk 0:01:12]} 39. Rd3 {[%clk 0:00:56]}  Na2 {[%clk 0:01:06]} 40. a5 {[%clk 0:00:55]}  Nb4 {[%clk 0:01:01]} 41. Rd7+ {[%clk 0:00:51]}  Kf6 {[%clk 0:01:00]} 42. a6 {[%clk 0:00:46]}  f4 {[%clk 0:00:53]} 43. a7 {[%clk 0:00:45]}  Ra8 {[%clk 0:00:53]} 44. Rxc7 {[%clk 0:00:44]}  Nd5 {[%clk 0:00:53]} 45. Rb7 {[%clk 0:00:41]}  Ke5 {[%clk 0:00:44]} 46. Na4 {[%clk 0:00:32]}  Rc8 {[%clk 0:00:42]} 47. Rb8 {[%clk 0:00:16]}  Rc2+ {[%clk 0:00:42]} 48. Ke1 {[%clk 0:00:16]}  Ne3 {[%clk 0:00:40]} 49. Re8+ {[%clk 0:00:16]}  Kd4 {[%clk 0:00:40]} 50. Rxe3 {[%clk 0:00:11]}  fxe3 {[%clk 0:00:19]} 51. a8=Q {[%clk 0:00:10]}  Rc1+ {[%clk 0:00:20]} 52. Ke2 {[%clk 0:00:11]}  Rc2+ {[%clk 0:00:21]} 53. Kd1 {[%clk 0:00:11]}  Rd2+ {[%clk 0:00:21]} 54. Ke1 {[%clk 0:00:12]}  Ra2 {[%clk 0:00:21]} 55. Qe4# {[%clk 0:00:12]} 1-0


[Site "https://www.chess.com"]

[Event "Titled Tuesday Blitz October 5 2021"]
[White "Garcia Blanco, Omar"]
[Black "Weetik, Vjacheslav"]
[WhiteFideId "2287153"]
[BlackFideId "4153472"]
[WhiteElo "2291"]
[BlackElo "2469"]
[Result "1-0"]
[Round "11"]
[TimeControl "180+1"]
[Date "2021.10.05"]
[WhiteClock "0:00:05"]
[BlackClock "0:00:01"]

1. e4 {[%clk 0:03:00]}  c6 {[%clk 0:02:59]} 2. d4 {[%clk 0:02:59]}  d6 {[%clk 0:02:59]} 3. Nc3 {[%clk 0:02:57]}  h6 {[%clk 0:02:59]} 4. Be3 {[%clk 0:02:57]}  g5 {[%clk 0:02:59]} 5. f3 {[%clk 0:02:57]}  Bg7 {[%clk 0:02:59]} 6. Qd2 {[%clk 0:02:57]}  Nd7 {[%clk 0:02:59]} 7. O-O-O {[%clk 0:02:57]}  Nf8 {[%clk 0:02:52]} 8. h4 {[%clk 0:02:56]}  gxh4 {[%clk 0:02:48]} 9. Rxh4 {[%clk 0:02:56]}  Ng6 {[%clk 0:02:48]} 10. Rh1 {[%clk 0:02:56]}  Qa5 {[%clk 0:02:46]} 11. Kb1 {[%clk 0:02:56]}  b5 {[%clk 0:02:29]} 12. Nh3 {[%clk 0:02:32]}  e5 {[%clk 0:01:45]} 13. dxe5 {[%clk 0:02:22]}  dxe5 {[%clk 0:01:21]} 14. Bc5 {[%clk 0:01:31]}  Be6 {[%clk 0:00:57]} 15. a4 {[%clk 0:01:14]}  N8e7 {[%clk 0:00:36]} 16. b4 {[%clk 0:00:54]}  Qc7 {[%clk 0:00:31]} 17. axb5 {[%clk 0:00:31]}  O-O {[%clk 0:00:30]} 18. bxc6 {[%clk 0:00:26]}  Nxc6 {[%clk 0:00:24]} 19. Bxf8 {[%clk 0:00:25]}  Bxf8 {[%clk 0:00:24]} 20. Nd5 {[%clk 0:00:22]}  Bxd5 {[%clk 0:00:23]} 21. exd5 {[%clk 0:00:21]}  Nxb4 {[%clk 0:00:23]} 22. Bd3 {[%clk 0:00:14]}  Rb8 {[%clk 0:00:19]} 23. Bxg6 {[%clk 0:00:13]}  Nd3+ {[%clk 0:00:06]} 24. Ka1 {[%clk 0:00:13]}  Bb4 {[%clk 0:00:06]} 25. Bxf7+ {[%clk 0:00:08]}  Kg7 {[%clk 0:00:05]} 26. Qxh6+ {[%clk 0:00:04]}  Kxh6 {[%clk 0:00:05]} 27. Nf4+ {[%clk 0:00:05]}  Kg5 {[%clk 0:00:02]} 28. Ne6+ {[%clk 0:00:06]}  Kf6 {[%clk 0:00:02]} 29. Nxc7 {[%clk 0:00:06]}  Bc3+ {[%clk 0:00:03]} 30. Ka2 {[%clk 0:00:06]}  Rb2+ {[%clk 0:00:02]} 31. Ka3 {[%clk 0:00:07]}  Nb4 {[%clk 0:00:02]} 32. d6 {[%clk 0:00:05]}  Nxc2+ {[%clk 0:00:02]} 33. Ka4 {[%clk 0:00:04]}  Rb4+ {[%clk 0:00:03]} 34. Ka5 {[%clk 0:00:05]}  Kxf7 {[%clk 0:00:02]} 35. Rh7+ {[%clk 0:00:04]}  Kg6 {[%clk 0:00:02]} 36. Rdh1 {[%clk 0:00:05]}  Rb6+ {[%clk 0:00:02]} 37. Ka4 {[%clk 0:00:05]}  Rxd6 {[%clk 0:00:02]} 38. Ne8 {[%clk 0:00:03]}  Rd4+ {[%clk 0:00:02]} 39. Kb5 {[%clk 0:00:04]}  Rb4+ {[%clk 0:00:02]} 40. Kc5 {[%clk 0:00:04]}  Bd4+ {[%clk 0:00:02]} 41. Kd5 {[%clk 0:00:05]}  Rb5+ {[%clk 0:00:02]} 42. Ke4 {[%clk 0:00:05]}  Kg5 {[%clk 0:00:01]} 43. Rg7# {[%clk 0:00:05]} 1-0


[Site "https://www.chess.com"]